fUST/lending_fUST_20240613
["ID","MTS","AMOUNT","RATE_DAILY","PERIOD"]
[329337291,1718257412620,273.37336231,9.9e-05,2]
[329337292,1718257420882,273.37336231,9.9e-05,2]
[329337293,1718257429530,273.37336231,9.9e-05,2]
[329337294,1718257437781,273.37336231,9.9e-05,2]
[329337295,1718257445998,273.37336231,9.9e-05,2]
[329337296,1718257453981,273.37336231,9.9e-05,2]
[329337297,1718257462246,273.37336231,9.9e-05,2]
[329337298,1718257470780,273.37336231,9.9e-05,2]
[329337299,1718257479039,273.37336231,9.9e-05,2]
[329337300,1718257488097,273.37336231,9.9e-05,2]
[329337343,1718257498206,273.37336231,9.9e-05,2]
[329337344,1718257506827,273.37336231,9.9e-05,2]
[329337346,1718257515538,273.37336231,9.9e-05,2]
[329337347,1718257523567,273.37336231,9.9e-05,2]
[329337348,1718257531806,273.37336231,9.9e-05,2]
[329337349,1718257539888,273.37336231,9.9e-05,2]
[329337350,1718257548098,273.37336231,9.9e-05,2]
[329337351,1718257556225,273.37336231,9.9e-05,2]
[329337352,1718257564693,273.37336231,9.9e-05,2]
[329337353,1718257573624,273.37336231,9.9e-05,2]
[329337354,1718257582531,273.37336231,9.9e-05,2]
[329337355,1718257590677,273.37336231,9.9e-05,2]
[329337356,1718257598581,273.37336231,9.9e-05,2]
[329337357,1718257606822,273.37336231,9.9e-05,2]
[329337358,1718257615449,273.37336231,9.9e-05,2]
[329337359,1718257623627,273.37336231,9.9e-05,2]
[329337360,1718257632139,273.37336231,9.9e-05,2]
[329337361,1718257641784,273.37336231,9.9e-05,2]
[329337362,1718257650393,273.37336231,9.9e-05,2]
[329337363,1718257658852,273.37336231,9.9e-05,2]
[329337364,1718257666828,273.37336231,9.9e-05,2]
[329337365,1718257676307,273.37336231,9.9e-05,2]
[329337367,1718257684265,273.37336231,9.9e-05,2]
[329337368,1718257692591,273.37336231,9.9e-05,2]
[329337369,1718257701862,273.37336231,9.9e-05,2]
[329337370,1718257710683,273.37336231,9.9e-05,2]
[329337371,1718257718804,273.37336231,9.9e-05,2]
[329337372,1718257726929,273.37336231,9.9e-05,2]
[329337373,1718257735654,273.37336231,9.9e-05,2]
[329337374,1718257744350,273.37336231,9.9e-05,2]
[329337375,1718257752312,273.37336231,9.9e-05,2]
[329337376,1718257762814,273.37336231,9.9e-05,2]
[329337377,1718257770790,273.37336231,9.9e-05,2]
[329337378,1718257779618,273.37336231,9.9e-05,2]
[329337379,1718257787640,273.37336231,9.9e-05,2]
[329337380,1718257796013,273.37336231,9.9e-05,2]
[329337381,1718257804096,273.37336231,9.9e-05,2]
[329337382,1718257813022,273.37336231,9.9e-05,2]
[329337385,1718257821808,273.37336231,9.9e-05,2]
[329337386,1718257830105,273.37336231,9.9e-05,2]
[329337399,1718257835780,-231.8799177,0.00015436,2]
[329337401,1718257835792,-414.80122784,0.00016337,2]
[329337403,1718257835810,-279.02153148,0.00016338,2]
[329337405,1718257835824,-930.02182381,0.00016433,2]
[329337407,1718257835843,-272.59860825,0.00016433,2]
[329337409,1718257835892,-300.0,0.00016434,2]
[329337411,1718257835921,-300.0,0.00016434,2]
[329337413,1718257835953,-155.10384293,0.00016435,2]
[329337415,1718257835977,-242.45261852,0.00016435,2]
[329337416,1718257836012,-155.1051018,0.00016435,2]
[329337417,1718257836037,-155.16081861,0.00016435,2]
[329337418,1718257836065,-157.16582144,0.00016435,2]
[329337419,1718257836076,-12661.28366813,0.00016435,2]
[329337420,1718257836087,-524.49723493,0.00016435,2]
[329337421,1718257836104,-1285.47667266,0.00016435,2]
[329337422,1718257836116,-412.8012736,0.00016435,2]
[329337423,1718257836129,-187.41110824,0.00016435,2]
[329337424,1718257836139,-195.13677025,0.00016435,2]
[329337425,1718257836150,-1346.90948518,0.00016435,2]
[329337426,1718257836162,-208.42988164,0.00016435,2]
[329337427,1718257836175,-661.87648934,0.00016435,2]
[329337428,1718257836189,-552.55976636,0.00016435,2]
[329337429,1718257836199,-722.49195225,0.00016435,2]
[329337430,1718257836212,-190.55526406,0.00016435,2]
[329337431,1718257836223,-1446.15898193,0.00016435,2]
[329337432,1718257836240,-1755.70847028,0.00016435,2]
[329337433,1718257836258,-2120.15435773,0.00016436,2]
[329337434,1718257836274,-776.51840216,0.00016436,2]
[329337435,1718257836286,-155.01395126,0.00016436,2]
[329337436,1718257836301,-1014.77866956,0.00016436,2]
[329337437,1718257836316,-2682.75928745,0.00016437,2]
[329337438,1718257836349,-39061.97327469,0.00016437,2]
[329337439,1718257836373,-500.0,0.00016438,2]
[329337440,1718257836384,-217.73679175,0.00016438,2]
[329337441,1718257836408,-503.91912436,0.00016438,2]
[329337442,1718257836420,-501.53972763,0.00016438,2]
[329337443,1718257836431,-500.0,0.00016438,2]
[329337444,1718257836449,-524.2849234,0.00016438,2]
[329337445,1718257836463,-500.0,0.00016438,2]
[329337446,1718257836488,-500.0,0.00016438,2]
[329337447,1718257836507,-500.0,0.00016438,2]
[329337448,1718257836522,-500.0,0.00016438,2]
[329337449,1718257836534,-500.0,0.00016438,2]
[329337450,1718257836548,-504.22704019,0.00016438,2]
[329337451,1718257836560,-500.0,0.00016438,2]
[329337452,1718257836575,-441.01440565,0.00016438,2]
[329337453,1718257836585,-500.0,0.00016438,2]
[329337454,1718257836599,-504.99862963,0.00016438,2]
[329337455,1718257836615,-500.0,0.00016438,2]
[329337456,1718257836627,-505.28105733,0.00016438,2]
[329337457,1718257836639,-500.0,0.00016438,2]
[329337458,1718257836655,-569.9151138,0.00016438,2]
[329337459,1718257836667,-500.0,0.00016438,2]
[329337460,1718257836687,-500.0,0.00016438,2]
[329337461,1718257836703,-500.0,0.00016438,2]
[329337462,1718257836713,-500.0,0.00016438,2]
[329337463,1718257836725,-500.0,0.00016438,2]
[329337464,1718257836740,-458.74528281,0.00016438,2]
[329337465,1718257836752,-502.97282869,0.00016438,2]
[329337466,1718257836769,-500.46554124,0.00016438,2]
[329337467,1718257836783,-500.0,0.00016438,2]
[329337468,1718257836796,-219.55168201,0.00016438,2]
[329337469,1718257836811,-280.44831799,0.00016438,2]
[329337470,1718257836831,-504.69128267,0.00016438,2]
[329337471,1718257836842,-500.0,0.00016438,2]
[329337472,1718257836875,-500.0,0.00016438,2]
[329337473,1718257836887,-407.43800277,0.00016438,2]
[329337474,1718257838772,273.37336231,9.9e-05,2]
[329337493,1718257840646,-92.56199723,0.00016438,2]
[329337494,1718257840667,-500.0,0.00016438,2]
[329337495,1718257840680,-500.0,0.00016438,2]
[329337496,1718257840695,-500.0,0.00016438,2]
[329337497,1718257840710,-528.97686081,0.00016438,2]
[329337498,1718257840722,-501.82755419,0.00016438,2]
[329337499,1718257840733,-500.0,0.00016438,2]
[329337500,1718257840753,-500.0,0.00016438,2]
[329337501,1718257840764,-500.0,0.00016438,2]
[329337502,1718257840781,-500.0,0.00016438,2]
[329337503,1718257840794,-199.70897713,0.00016438,2]
[329337504,1718257840806,-503.1202979,0.00016438,2]
[329337505,1718257840829,-500.0,0.00016438,2]
[329337506,1718257840852,-504.37633166,0.00016438,2]
[329337507,1718257840863,-500.0,0.00016438,2]
[329337508,1718257840874,-502.32011753,0.00016438,2]
[329337509,1718257840886,-318.74946914,0.00016438,2]
[329337510,1718257840913,-500.0,0.00016438,2]
[329337511,1718257840933,-500.0,0.00016438,2]
[329337512,1718257840949,-500.0,0.00016438,2]
[329337513,1718257840962,-501.48322474,0.00016438,2]
[329337514,1718257840978,-500.0,0.00016438,2]
[329337515,1718257841005,-505.01011904,0.00016438,2]
[329337516,1718257841016,-500.0,0.00016438,2]
[329337517,1718257841037,-448.54991022,0.00016438,2]
[329337518,1718257841048,-500.0,0.00016438,2]
[329337519,1718257841059,-504.71014263,0.00016438,2]
[329337520,1718257841072,-509.49320791,0.00016438,2]
[329337521,1718257841082,-500.0,0.00016438,2]
[329337522,1718257841094,-500.61771159,0.00016438,2]
[329337523,1718257841112,-500.0,0.00016438,2]
[329337524,1718257841128,-500.0,0.00016438,2]
[329337525,1718257841142,-500.0,0.00016438,2]
[329337526,1718257841153,-500.0,0.00016438,2]
[329337527,1718257841167,-500.0,0.00016438,2]
[329337528,1718257841191,-500.0,0.00016438,2]
[329337529,1718257841215,-500.0,0.00016438,2]
[329337530,1718257841228,-500.0,0.00016438,2]
[329337531,1718257841257,-501.64981293,0.00016438,2]
[329337532,1718257841268,-500.0,0.00016438,2]
[329337533,1718257841293,-500.0,0.00016438,2]
[329337534,1718257841311,-500.0,0.00016438,2]
[329337535,1718257841354,-500.0,0.00016438,2]
[329337536,1718257841368,-500.0,0.00016438,2]
[329337537,1718257841380,-500.0,0.00016438,2]
[329337538,1718257841403,-500.0,0.00016438,2]
[329337539,1718257841420,-500.0,0.00016438,2]
[329337540,1718257841441,-500.0,0.00016438,2]
[329337541,1718257841457,-500.0,0.00016438,2]
[329337542,1718257841483,-500.0,0.00016438,2]
[329337543,1718257841512,-500.0,0.00016438,2]
[329337544,1718257841523,-500.0,0.00016438,2]
[329337545,1718257841537,-500.0,0.00016438,2]
[329337546,1718257841561,-500.0,0.00016438,2]
[329337547,1718257841573,-500.0,0.00016438,2]
[329337548,1718257841584,-500.0,0.00016438,2]
[329337553,1718257841753,-500.0,0.00016438,2]
[329337554,1718257841764,-500.0,0.00016438,2]
[329337555,1718257841775,-500.0,0.00016438,2]
[329337556,1718257841786,-500.0,0.00016438,2]
[329337557,1718257841804,-500.0,0.00016438,2]
[329337558,1718257841817,-500.0,0.00016438,2]
[329337559,1718257841831,-500.0,0.00016438,2]
[329337560,1718257841848,-500.0,0.00016438,2]
[329337561,1718257841860,-500.0,0.00016438,2]
[329337562,1718257841871,-500.0,0.00016438,2]
[329337563,1718257841882,-500.85481312,0.00016438,2]
[329337564,1718257841893,-500.0,0.00016438,2]
[329337565,1718257841906,-500.0,0.00016438,2]
[329337566,1718257841920,-500.53726213,0.00016438,2]
[329337567,1718257841931,-500.0,0.00016438,2]
[329337568,1718257841951,-621.5708302,0.00016438,2]
[329337569,1718257841964,-596.47907796,0.00016438,2]
[329337570,1718257841975,-500.0,0.00016438,2]
[329337571,1718257841986,-500.0,0.00016438,2]
[329337572,1718257841998,-500.0,0.00016438,2]
[329337573,1718257842009,-500.0,0.00016438,2]
[329337574,1718257842019,-500.0,0.00016438,2]
[329337575,1718257842030,-500.0,0.00016438,2]
[329337576,1718257842041,-500.0,0.00016438,2]
[329337577,1718257842051,-501.97949805,0.00016438,2]
[329337578,1718257842063,-1087.76,0.00016438,2]
[329337579,1718257842074,-500.0,0.00016438,2]
[329337580,1718257842085,-500.0,0.00016438,2]
[329337581,1718257842098,-166.29588103,0.00016438,2]
[329337582,1718257842109,-500.0,0.00016438,2]
[329337583,1718257842120,-500.0,0.00016438,2]
[329337584,1718257842131,-500.0,0.00016438,2]
[329337585,1718257842141,-523.42827847,0.00016438,2]
[329337586,1718257842152,-500.0,0.00016438,2]
[329337587,1718257842163,-500.0,0.00016438,2]
[329337588,1718257842175,-500.0,0.00016438,2]
[329337589,1718257842187,-500.0,0.00016438,2]
[329337590,1718257842204,-500.0,0.00016438,2]
[329337591,1718257842225,-500.0,0.00016438,2]
[329337592,1718257842237,-500.0,0.00016438,2]
[329337593,1718257842255,-500.0,0.00016438,2]
[329337594,1718257842273,-500.25296439,0.00016438,2]
[329337595,1718257842285,-500.0,0.00016438,2]
[329337596,1718257842296,-500.0,0.00016438,2]
[329337597,1718257842307,-500.0,0.00016438,2]
[329337598,1718257842317,-500.0,0.00016438,2]
[329337599,1718257842329,-500.0,0.00016438,2]
[329337600,1718257842363,-500.0,0.00016438,2]
[329337601,1718257842375,-500.0,0.00016438,2]
[329337602,1718257842398,-500.0,0.00016438,2]
[329337603,1718257842409,-503.41374385,0.00016438,2]
[329337604,1718257842427,-502.65471147,0.00016438,2]
[329337605,1718257842438,-500.0,0.00016438,2]
[329337606,1718257842455,-359.5536716,0.00016438,2]
[329337607,1718257842489,-529.88131557,0.00016438,2]
[329337608,1718257842504,-502.73819267,0.00016438,2]
[329337609,1718257842516,-531.48247668,0.00016438,2]
[329337610,1718257842529,-500.0,0.00016438,2]
[329337611,1718257842544,-501.8649398,0.00016438,2]
[329337612,1718257842556,-372.78673862,0.00016438,2]
[329337613,1718257842572,-519.09554625,0.00016438,2]
[329337614,1718257842584,-500.0,0.00016438,2]
[329337615,1718257842609,-500.0,0.00016438,2]
[329337616,1718257842621,-172.83990636,0.00016438,2]
[329337617,1718257842632,-503.18543311,0.00016438,2]
[329337618,1718257842645,-504.6584035,0.00016438,2]
[329337619,1718257842656,-500.0,0.00016438,2]
[329337620,1718257842673,-541.79408343,0.00016438,2]
[329337621,1718257842697,-500.0,0.00016438,2]
[329337622,1718257842707,-500.0,0.00016438,2]
[329337623,1718257842722,-500.0,0.00016438,2]
[329337624,1718257842734,-500.0,0.00016438,2]
[329337625,1718257842754,-500.0,0.00016438,2]
[329337626,1718257842767,-500.0,0.00016438,2]
[329337627,1718257842784,-504.10859024,0.00016438,2]
[329337628,1718257842797,-624.85,0.00016438,2]
[329337629,1718257842810,-500.0,0.00016438,2]
[329337630,1718257842822,-529.87975182,0.00016438,2]
[329337631,1718257842835,-500.08201247,0.00016438,2]
[329337632,1718257842848,-500.0,0.00016438,2]
[329337633,1718257842868,-500.0,0.00016438,2]
[329337634,1718257842879,-505.81005536,0.00016438,2]
[329337635,1718257842892,-516.80415969,0.00016438,2]
[329337636,1718257842903,-500.0,0.00016438,2]
[329337637,1718257842914,-500.0,0.00016438,2]
[329337638,1718257842927,-500.0,0.00016438,2]
[329337639,1718257842940,-500.0,0.00016438,2]
[329337640,1718257842952,-500.0,0.00016438,2]
[329337641,1718257842969,-500.0,0.00016438,2]
[329337642,1718257842989,-462.52904942,0.00016438,2]
[329337643,1718257843000,-500.0,0.00016438,2]
[329337644,1718257843012,-500.0,0.00016438,2]
[329337645,1718257843027,-500.0,0.00016438,2]
[329337646,1718257843060,-410.67673225,0.00016438,2]
[329337647,1718257843083,-500.0,0.00016438,2]
[329337648,1718257843095,-500.0,0.00016438,2]
[329337649,1718257843109,-500.0,0.00016438,2]
[329337650,1718257843121,-500.0,0.00016438,2]
[329337651,1718257843132,-500.0,0.00016438,2]
[329337652,1718257843152,-500.0,0.00016438,2]
[329337653,1718257843206,-500.0,0.00016438,2]
[329337654,1718257843219,-505.37461328,0.00016438,2]
[329337655,1718257843232,-500.0,0.00016438,2]
[329337656,1718257843243,-500.0,0.00016438,2]
[329337657,1718257843254,-500.0,0.00016438,2]
[329337658,1718257843274,-500.0,0.00016438,2]
[329337659,1718257843290,-500.0,0.00016438,2]
[329337660,1718257843301,-500.0,0.00016438,2]
[329337661,1718257843311,-500.0,0.00016438,2]
[329337662,1718257843324,-500.0,0.00016438,2]
[329337663,1718257843336,-531.20347033,0.00016438,2]
[329337664,1718257843372,-500.0,0.00016438,2]
[329337665,1718257843383,-500.0,0.00016438,2]
[329337666,1718257843397,-500.0,0.00016438,2]
[329337667,1718257843409,-500.0,0.00016438,2]
[329337668,1718257843419,-500.0,0.00016438,2]
[329337669,1718257843437,-506.82157987,0.00016438,2]
[329337670,1718257843456,-502.26951254,0.00016438,2]
[329337671,1718257843466,-500.0,0.00016438,2]
[329337672,1718257843480,-500.0,0.00016438,2]
[329337673,1718257843492,-500.0,0.00016438,2]
[329337674,1718257843504,-500.0,0.00016438,2]
[329337675,1718257843516,-500.0,0.00016438,2]
[329337676,1718257843527,-500.0,0.00016438,2]
[329337677,1718257843543,-500.0,0.00016438,2]
[329337678,1718257843556,-500.0,0.00016438,2]
[329337679,1718257843567,-502.48563397,0.00016438,2]
[329337680,1718257843579,-567.28,0.00016438,2]
[329337681,1718257843596,-500.0,0.00016438,2]
[329337682,1718257843610,-500.0,0.00016438,2]
[329337683,1718257843621,-500.0,0.00016438,2]
[329337684,1718257843639,-500.0,0.00016438,2]
[329337685,1718257843658,-500.0,0.00016438,2]
[329337686,1718257843676,-503.61427952,0.00016438,2]
[329337687,1718257843699,-500.0,0.00016438,2]
[329337688,1718257843732,-507.65729321,0.00016438,2]
[329337689,1718257843744,-500.0,0.00016438,2]
[329337690,1718257843757,-500.0,0.00016438,2]
[329337691,1718257843794,-500.0,0.00016438,2]
[329337692,1718257843825,-618.11,0.00016438,2]
[329337693,1718257843848,-500.0,0.00016438,2]
[329337694,1718257843868,-500.0,0.00016438,2]
[329337695,1718257843891,-501.27885888,0.00016438,2]
[329337696,1718257843904,-500.0,0.00016438,2]
[329337697,1718257843933,-500.0,0.00016438,2]
[329337699,1718257843944,-500.0,0.00016438,2]
[329337700,1718257843961,-659.32,0.00016438,2]
[329337701,1718257843976,-500.0,0.00016438,2]
[329337702,1718257843993,-500.0,0.00016438,2]
[329337703,1718257844010,-500.0,0.00016438,2]
[329337704,1718257844044,-500.0,0.00016438,2]
[329337705,1718257844080,-1302.33,0.00016438,2]
[329337706,1718257844096,-500.0,0.00016438,2]
[329337707,1718257844110,-500.0,0.00016438,2]
[329337708,1718257844134,-500.0,0.00016438,2]
[329337709,1718257844155,-500.0,0.00016438,2]
[329337710,1718257844172,-500.0,0.00016438,2]
[329337711,1718257844189,-500.0,0.00016438,2]
[329337712,1718257844204,-500.0,0.00016438,2]
[329337713,1718257844228,-508.69,0.00016438,2]
[329337715,1718257844263,-507.42722885,0.00016438,2]
[329337716,1718257844282,-500.0,0.00016438,2]
[329337717,1718257844294,-500.0,0.00016438,2]
[329337718,1718257844305,-500.0,0.00016438,2]
[329337719,1718257844317,-500.0,0.00016438,2]
[329337720,1718257844328,-516.39973191,0.00016438,2]
[329337721,1718257844378,-500.0,0.00016438,2]
[329337722,1718257844392,-500.0,0.00016438,2]
[329337723,1718257844405,-380.54592618,0.00016438,2]
[329337724,1718257844419,-501.70643151,0.00016438,2]
[329337725,1718257844433,-1012.7,0.00016438,2]
[329337726,1718257844472,-500.75606427,0.00016438,2]
[329337727,1718257844496,-502.64991484,0.00016438,2]
[329337728,1718257844517,-500.0,0.00016438,2]
[329337730,1718257844556,-500.0,0.00016438,2]
[329337731,1718257844570,-500.0,0.00016438,2]
[329337732,1718257844588,-500.0,0.00016438,2]
[329337733,1718257844599,-500.0,0.00016438,2]
[329337734,1718257844621,-500.0,0.00016438,2]
[329337735,1718257844637,-500.0,0.00016438,2]
[329337736,1718257844648,-500.0,0.00016438,2]
[329337737,1718257844658,-500.0,0.00016438,2]
[329337738,1718257844668,-519.35254762,0.00016438,2]
[329337739,1718257844679,-500.0,0.00016438,2]
[329337740,1718257844692,-500.0,0.00016438,2]
[329337741,1718257844705,-500.0,0.00016438,2]
[329337742,1718257844717,-500.0,0.00016438,2]
[329337743,1718257844728,-502.70824323,0.00016438,2]
[329337744,1718257844739,-2347.97,0.00016438,2]
[329337745,1718257844750,-504.04090387,0.00016438,2]
[329337746,1718257844761,-502.06598446,0.00016438,2]
[329337747,1718257844777,-500.0,0.00016438,2]
[329337748,1718257844790,-500.0,0.00016438,2]
[329337749,1718257844811,-501.91656576,0.00016438,2]
[329337750,1718257844837,-500.0,0.00016438,2]
[329337751,1718257844851,-500.0,0.00016438,2]
[329337752,1718257844862,-501.65155684,0.00016438,2]
[329337753,1718257844872,-500.0,0.00016438,2]
[329337754,1718257844885,-502.9462045,0.00016438,2]
[329337755,1718257844896,-1858.46,0.00016438,2]
[329337756,1718257844908,-500.0,0.00016438,2]
[329337757,1718257844919,-500.0,0.00016438,2]
[329337758,1718257844935,-500.0,0.00016438,2]
[329337759,1718257844947,-3002.85,0.00016438,2]
[329337760,1718257844961,-500.0,0.00016438,2]
[329337761,1718257844972,-500.0,0.00016438,2]
[329337762,1718257844996,-502.85401392,0.00016438,2]
[329337763,1718257845008,-737.66,0.00016438,2]
[329337764,1718257845019,-175.60271591,0.00016438,2]
[329337765,1718257845032,-500.0,0.0001671,2]
[329337766,1718257845049,-500.0,0.0001671,2]
[329337767,1718257845079,-500.0,0.0001671,2]
[329337768,1718257845091,-500.0,0.00016711,2]
[329337769,1718257845110,-503.20887304,0.00016712,2]
[329337770,1718257845124,-500.0,0.00016712,2]
[329337771,1718257845135,-500.0,0.00016712,2]
[329337772,1718257845147,-500.0,0.00016712,2]
[329337773,1718257845180,-500.0,0.00016712,2]
[329337774,1718257845213,-500.0,0.00016712,2]
[329337775,1718257845224,-500.0,0.00016712,2]
[329337776,1718257845237,-500.0,0.00016712,2]
[329337777,1718257845259,-576.31191636,0.00016712,2]
[329337778,1718257845271,-500.0,0.00016712,2]
[329337779,1718257845282,-500.0,0.00016712,2]
[329337780,1718257845300,-500.0,0.00016712,2]
[329337781,1718257845329,-500.0,0.00016712,2]
[329337782,1718257845365,-500.0,0.00016712,2]
[329337783,1718257845381,-500.0,0.00016712,2]
[329337784,1718257845397,-500.0,0.00016712,2]
[329337785,1718257845418,-500.0,0.00016712,2]
[329337786,1718257845446,-500.0,0.00016712,2]
[329337787,1718257845464,-500.0,0.00016712,2]
[329337789,1718257845481,-500.0,0.00016712,2]
[329337791,1718257845511,-500.0,0.00016712,2]
[329337793,1718257845524,-500.0,0.00016712,2]
[329337795,1718257845535,-500.0,0.00016712,2]
[329337796,1718257845548,-500.0,0.00016712,2]
[329337797,1718257845561,-500.0,0.00016712,2]
[329337798,1718257845590,-500.0,0.00016712,2]
[329337799,1718257845607,-502.05286969,0.00016712,2]
[329337800,1718257845630,-500.0,0.00016712,2]
[329337801,1718257845641,-500.0,0.00016712,2]
[329337802,1718257845654,-352.59451654,0.00016712,2]
[329337803,1718257845665,-500.0,0.00016712,2]
[329337804,1718257845683,-500.0,0.00016712,2]
[329337805,1718257845695,-500.0,0.00016712,2]
[329337806,1718257845707,-500.0,0.00016712,2]
[329337807,1718257845718,-500.0,0.00016712,2]
[329337808,1718257845751,-500.0,0.00016712,2]
[329337809,1718257845762,-507.76656536,0.00016712,2]
[329337810,1718257845782,-500.0,0.00016712,2]
[329337811,1718257845793,-500.0,0.00016712,2]
[329337812,1718257845805,-500.0,0.00016712,2]
[329337813,1718257845817,-500.0,0.00016712,2]
[329337814,1718257845827,-500.0,0.00016712,2]
[329337815,1718257845845,-500.0,0.00016712,2]
[329337816,1718257845859,-500.0,0.00016712,2]
[329337817,1718257845880,-500.0,0.00016712,2]
[329337818,1718257845890,-500.0,0.00016712,2]
[329337819,1718257845902,-1087.76,0.00016712,2]
[329337820,1718257845913,-500.0,0.00016712,2]
[329337821,1718257845933,-503.48571526,0.00016712,2]
[329337822,1718257845945,-500.0,0.00016712,2]
[329337823,1718257845979,-500.0,0.00016712,2]
[329337824,1718257846004,-500.0,0.00016712,2]
[329337825,1718257846025,-500.0,0.00016712,2]
[329337826,1718257846038,-228.92,0.00016712,2]
[329337827,1718257846054,-500.0,0.00016712,2]
[329337828,1718257846067,-500.0,0.00016712,2]
[329337829,1718257846080,-500.0,0.00016712,2]
[329337830,1718257846097,-500.0,0.00016712,2]
[329337831,1718257846115,-500.0,0.00016712,2]
[329337832,1718257846129,-500.0,0.00016712,2]
[329337833,1718257846141,-624.85,0.00016712,2]
[329337834,1718257846168,-506.44726141,0.00016712,2]
[329337835,1718257846186,-500.0,0.00016712,2]
[329337836,1718257846204,-500.0,0.00016712,2]
[329337837,1718257846224,-500.0,0.00016712,2]
[329337838,1718257846236,-505.43986007,0.00016712,2]
[329337839,1718257846265,-500.0,0.00016712,2]
[329337840,1718257846290,-509.92837904,0.00016712,2]
[329337841,1718257846310,-500.0,0.00016712,2]
[329337842,1718257846327,-500.0,0.00016712,2]
[329337843,1718257846356,-154.97471918,0.00016712,2]
[329337844,1718257846372,-500.0,0.00016712,2]
[329337846,1718257846388,-500.0,0.00016712,2]
[329337848,1718257846403,-500.0,0.00016712,2]
[329337850,1718257846417,-506.95462209,0.00016712,2]
[329337851,1718257846428,-153.48733593,0.00016712,2]
[329337852,1718257846444,-500.0,0.00016712,2]
[329337853,1718257846459,-500.0,0.00016712,2]
[329337854,1718257846474,-516.59377576,0.00016712,2]
[329337855,1718257846494,-500.0,0.00016712,2]
[329337856,1718257846504,-503.06086994,0.00016712,2]
[329337857,1718257846517,-500.0,0.00016712,2]
[329337858,1718257846527,-280.25680499,0.00016712,2]
[329337859,1718257846538,-504.35387679,0.00016712,2]
[329337860,1718257846549,-500.0,0.00016712,2]
[329337861,1718257846570,-505.00962451,0.00016712,2]
[329337862,1718257846592,-500.0,0.00016712,2]
[329337863,1718257846604,-567.28,0.00016712,2]
[329337864,1718257846614,-502.18065406,0.00016712,2]
[329337865,1718257846626,-502.79237812,0.00016712,2]
[329337866,1718257846637,-500.0,0.00016712,2]
[329337867,1718257846649,-500.0,0.00016712,2]
[329337868,1718257846663,-193.30367362,0.00016712,2]
[329337869,1718257846676,-523.31363097,0.00016712,2]
[329337870,1718257846693,-556.32500971,0.00016712,2]
[329337871,1718257846713,-618.11,0.00016712,2]
[329337872,1718257846725,-500.0,0.00016712,2]
[329337873,1718257846736,-500.0,0.00016712,2]
[329337874,1718257846747,-418.70658489,0.00016712,2]
[329337875,1718257846759,-659.32,0.00016712,2]
[329337876,1718257846773,-500.0,0.00016712,2]
[329337877,1718257846789,-500.0,0.00016712,2]
[329337878,1718257846802,-500.0,0.00016712,2]
[329337879,1718257846813,-1302.33,0.00016712,2]
[329337880,1718257846826,-500.0,0.00016712,2]
[329337881,1718257846837,-500.0,0.00016712,2]
[329337882,1718257846849,-500.0,0.00016712,2]
[329337883,1718257846971,-500.0,0.00016712,2]
[329337884,1718257846984,-500.0,0.00016712,2]
[329337885,1718257846998,-500.0,0.00016712,2]
[329337887,1718257847010,-500.0,0.00016712,2]
[329337888,1718257847027,-1012.7,0.00016712,2]
[329337889,1718257847038,-500.0,0.00016712,2]